[Event "Late-Titled-Tuesday-Blitz-March-12-2024"]
[Site "Chess.com"]
[Date "2024.03.12"]
[Round "2"]
[White "HajiyevKanan"]
[Black "KnightmareJoker"]
[Result "1-0"]
[WhiteElo "2531"]
[BlackElo "2261"]
[TimeControl "180+1"]
[EndTime "14:18:57 PDT"]
[Termination "HajiyevKanan won by checkmate"]

1. d4 {[%clk 0:02:59.2]} 1... d5 {[%clk 0:03:00.4]} 2. Nf3 {[%clk 0:02:57.5]}
2... Nf6 {[%clk 0:03:00.4]} 3. c4 {[%clk 0:02:58.3]} 3... e6 {[%clk 0:03:00.9]}
4. cxd5 {[%clk 0:02:59.2]} 4... exd5 {[%clk 0:03:01.2]} 5. Nc3 {[%clk
0:03:00.1]} 5... Be7 {[%clk 0:03:01.2]} 6. Qc2 {[%clk 0:03:00.5]} 6... c6 {[%clk
0:03:01.6]} 7. Bf4 {[%clk 0:03:00.5]} 7... O-O {[%clk 0:03:01.9]} 8. e3 {[%clk
0:03:01.1]} 8... Nbd7 {[%clk 0:03:02.4]} 9. Bd3 {[%clk 0:03:01.7]} 9... Re8
{[%clk 0:03:01.9]} 10. O-O {[%clk 0:03:02.1]} 10... Nf8 {[%clk 0:03:02.2]} 11.
Rab1 {[%clk 0:03:02.1]} 11... a5 {[%clk 0:03:01.7]} 12. a3 {[%clk 0:03:02.8]}
12... Ng6 {[%clk 0:03:00]} 13. Bg3 {[%clk 0:03:02.5]} 13... Bd6 {[%clk
0:02:58.6]} 14. Bxd6 {[%clk 0:03:02.7]} 14... Qxd6 {[%clk 0:02:59.5]} 15. b4
{[%clk 0:03:03.3]} 15... axb4 {[%clk 0:03:00.4]} 16. axb4 {[%clk 0:03:04.2]}
16... Bg4 {[%clk 0:02:59.7]} 17. Be2 {[%clk 0:02:57.2]} 17... Ne4 {[%clk
0:02:51.8]} 18. b5 {[%clk 0:02:51.8]} 18... Ra3 {[%clk 0:02:41]} 19. Nxe4 {[%clk
0:02:12.8]} 19... dxe4 {[%clk 0:02:39.5]} 20. Ne1 {[%clk 0:02:03.7]} 20... Be6
{[%clk 0:02:01.3]} 21. bxc6 {[%clk 0:02:03.1]} 21... bxc6 {[%clk 0:02:01.9]} 22.
Qxe4 {[%clk 0:01:52.7]} 22... Qd7 {[%clk 0:01:58.3]} 23. Qc2 {[%clk 0:01:41.1]}
23... Ra2 {[%clk 0:01:49.7]} 24. Rb2 {[%clk 0:01:39.8]} 24... Bf5 {[%clk
0:01:36.6]} 25. Qc3 {[%clk 0:01:35.1]} 25... Rxb2 {[%clk 0:01:32.3]} 26. Qxb2
{[%clk 0:01:36]} 26... Bg4 {[%clk 0:01:30.5]} 27. Nd3 {[%clk 0:01:32.9]} 27...
Bxe2 {[%clk 0:01:18.4]} 28. Qxe2 {[%clk 0:01:32.7]} 28... Qxd4 {[%clk
0:01:17.5]} 29. exd4 {[%clk 0:01:30.8]} 29... Rxe2 {[%clk 0:01:17.7]} 30. Rc1
{[%clk 0:01:30.6]} 30... h6 {[%clk 0:01:11.9]} 31. Nc5 {[%clk 0:01:25.6]} 31...
Nf4 {[%clk 0:01:07.4]} 32. g3 {[%clk 0:01:22.9]} 32... Nh3+ {[%clk 0:00:54.1]}
33. Kg2 {[%clk 0:01:21.8]} 33... Ng5 {[%clk 0:00:53.2]} 34. h4 {[%clk
0:01:17.9]} 34... Ne4 {[%clk 0:00:50.5]} 35. Kf3 {[%clk 0:01:09.8]} 35... Nxc5
{[%clk 0:00:41.6]} 36. Kxe2 {[%clk 0:01:09.2]} 36... Nb3 {[%clk 0:00:42.2]} 37.
Rc4 {[%clk 0:01:07.6]} 37... Na5 {[%clk 0:00:41.9]} 38. Rb4 {[%clk 0:01:02.9]}
38... Kf8 {[%clk 0:00:39.6]} 39. Kd3 {[%clk 0:01:00.9]} 39... Ke7 {[%clk
0:00:38.6]} 40. Rb7+ {[%clk 0:01:00.6]} 40... Nxb7 {[%clk 0:00:38.5]} 41. Kc4
{[%clk 0:01:00.2]} 41... Nd6+ {[%clk 0:00:38.2]} 42. Kc5 {[%clk 0:01:00.6]}
42... Ne4+ {[%clk 0:00:38.6]} 43. Kxc6 {[%clk 0:01:00.5]} 43... Nxf2 {[%clk
0:00:39.3]} 44. d5 {[%clk 0:01:01.3]} 44... Ne4 {[%clk 0:00:40]} 45. g4 {[%clk
0:01:01.5]} 45... Nd6 {[%clk 0:00:39.9]} 46. h5 {[%clk 0:00:56.5]} 46... Ne4
{[%clk 0:00:37.6]} 47. Kc7 {[%clk 0:00:55.5]} 47... f6 {[%clk 0:00:35.5]} 48.
Kc6 {[%clk 0:00:54.4]} 48... Nd6 {[%clk 0:00:34.9]} 49. Kc7 {[%clk 0:00:54.8]}
49... Ne8+ {[%clk 0:00:34.7]} 50. Kc6 {[%clk 0:00:54.6]} 50... Nd6 {[%clk
0:00:28.3]} 51. Kc7 {[%clk 0:00:54.5]} 51... Nb5+ {[%clk 0:00:27.8]} 52. Kc6
{[%clk 0:00:54.6]} 52... Nd4+ {[%clk 0:00:28.1]} 53. Kc7 {[%clk 0:00:53.5]}
53... Kf7 {[%clk 0:00:25.2]} 54. d6 {[%clk 0:00:49.6]} 54... g6 {[%clk
0:00:25.2]} 55. hxg6+ {[%clk 0:00:47.6]} 55... Kxg6 {[%clk 0:00:25.5]} 56. d7
{[%clk 0:00:46.3]} 56... f5 {[%clk 0:00:22.8]} 57. Kd6 {[%clk 0:00:39.8]} 57...
Nb5+ {[%clk 0:00:18.1]} 58. Ke7 {[%clk 0:00:33.1]} 58... Na7 {[%clk 0:00:11.6]}
59. Kd6 {[%clk 0:00:30.1]} 59... Nb5+ {[%clk 0:00:11.9]} 60. Kc6 {[%clk
0:00:24.6]} 60... Nd4+ {[%clk 0:00:07.9]} 61. Kd5 {[%clk 0:00:24.9]} 61... Ne2
{[%clk 0:00:05.3]} 62. gxf5+ {[%clk 0:00:24]} 62... Kxf5 {[%clk 0:00:05.3]} 63.
d8=Q {[%clk 0:00:24.4]} 63... Nf4+ {[%clk 0:00:06.1]} 64. Kd6 {[%clk 0:00:23.5]}
64... h5 {[%clk 0:00:05]} 65. Qh4 {[%clk 0:00:23.3]} 65... Ng6 {[%clk
0:00:04.9]} 66. Qxh5+ {[%clk 0:00:23.1]} 66... Kf6 {[%clk 0:00:05.6]} 67. Qh6
{[%clk 0:00:20.3]} 67... Kf5 {[%clk 0:00:06.2]} 68. Qh7 {[%clk 0:00:19.3]} 68...
Kf6 {[%clk 0:00:06.5]} 69. Kc5 {[%clk 0:00:17.3]} 69... Kf5 {[%clk 0:00:06]} 70.
Qf7+ {[%clk 0:00:17.2]} 70... Kg5 {[%clk 0:00:05.7]} 71. Kd4 {[%clk 0:00:18.1]}
71... Nf4 {[%clk 0:00:05.1]} 72. Ke4 {[%clk 0:00:18.3]} 72... Ng6 {[%clk
0:00:04.9]} 73. Qf5+ {[%clk 0:00:17.8]} 73... Kh6 {[%clk 0:00:05.4]} 74. Qf6
{[%clk 0:00:15.1]} 74... Kh7 {[%clk 0:00:04.2]} 75. Kf5 {[%clk 0:00:14.4]} 75...
Nf8 {[%clk 0:00:03.3]} 76. Qf7+ {[%clk 0:00:11.1]} 76... Kh8 {[%clk 0:00:03.4]}
77. Qxf8+ {[%clk 0:00:11.7]} 77... Kh7 {[%clk 0:00:04.3]} 78. Qf7+ {[%clk
0:00:11]} 78... Kh6 {[%clk 0:00:05.2]} 79. Qg6# {[%clk 0:00:10.9]} 1-0

[Event "Late-Titled-Tuesday-Blitz-March-12-2024"]
[Site "Chess.com"]
[Date "2024.03.12"]
[Round "2"]
[White "Kavyev_Ruslan"]
[Black "Rinqed222"]
[Result "1/2-1/2"]
[WhiteElo "2530"]
[BlackElo "2320"]
[TimeControl "180+1"]
[EndTime "14:19:04 PDT"]
[Termination "Game drawn by repetition"]

1. d4 {[%clk 0:02:55.1]} 1... Nf6 {[%clk 0:02:59.6]} 2. Nf3 {[%clk 0:02:52.8]}
2... g6 {[%clk 0:02:59.8]} 3. c4 {[%clk 0:02:52.6]} 3... Bg7 {[%clk 0:02:59.5]}
4. g3 {[%clk 0:02:53.2]} 4... O-O {[%clk 0:02:58.9]} 5. Bg2 {[%clk 0:02:53.7]}
5... d6 {[%clk 0:02:59.4]} 6. O-O {[%clk 0:02:54]} 6... c5 {[%clk 0:02:59.8]} 7.
dxc5 {[%clk 0:02:52.7]} 7... dxc5 {[%clk 0:02:59.9]} 8. Ne5 {[%clk 0:02:50.5]}
8... Qd4 {[%clk 0:02:59.7]} 9. Qxd4 {[%clk 0:02:38.2]} 9... cxd4 {[%clk
0:02:59.9]} 10. Rd1 {[%clk 0:02:13.8]} 10... Nfd7 {[%clk 0:02:12.3]} 11. Nxd7
{[%clk 0:01:41.5]} 11... Nxd7 {[%clk 0:02:13.2]} 12. Na3 {[%clk 0:01:30.9]}
12... a6 {[%clk 0:01:56.4]} 13. Nc2 {[%clk 0:01:30.1]} 13... e5 {[%clk
0:01:56.2]} 14. e3 {[%clk 0:01:29.1]} 14... d3 {[%clk 0:01:13.9]} 15. Rxd3
{[%clk 0:01:09.1]} 15... e4 {[%clk 0:01:14]} 16. Rd1 {[%clk 0:00:45.2]} 16...
Nc5 {[%clk 0:01:04.9]} 17. Rb1 {[%clk 0:00:40.8]} 17... Bg4 {[%clk 0:00:56.7]}
18. Rd5 {[%clk 0:00:32.7]} 18... Rad8 {[%clk 0:00:36.2]} 19. b4 {[%clk
0:00:18.4]} 19... Rxd5 {[%clk 0:00:29]} 20. cxd5 {[%clk 0:00:19.3]} 20... Na4
{[%clk 0:00:29.6]} 21. Nd4 {[%clk 0:00:16.6]} 21... Nc3 {[%clk 0:00:19.3]} 22.
Rb3 {[%clk 0:00:15.3]} 22... Bxd4 {[%clk 0:00:19.5]} 23. exd4 {[%clk 0:00:15.4]}
23... Ne2+ {[%clk 0:00:20.4]} 24. Kf1 {[%clk 0:00:14.8]} 24... Nxc1 {[%clk
0:00:21.3]} 25. Rc3 {[%clk 0:00:12.9]} 25... Nxa2 {[%clk 0:00:20.3]} 26. Rc7
{[%clk 0:00:11.5]} 26... Nxb4 {[%clk 0:00:19.7]} 27. Bxe4 {[%clk 0:00:10.8]}
27... Nxd5 {[%clk 0:00:20.4]} 28. Bxd5 {[%clk 0:00:10.7]} 28... Be6 {[%clk
0:00:20]} 29. Bxe6 {[%clk 0:00:10.3]} 29... fxe6 {[%clk 0:00:20.6]} 30. Rxb7
{[%clk 0:00:10.9]} 30... Rf7 {[%clk 0:00:20.6]} 31. Rb8+ {[%clk 0:00:10.5]}
31... Kg7 {[%clk 0:00:21.4]} 32. Ra8 {[%clk 0:00:11.2]} 32... Rd7 {[%clk
0:00:20.9]} 33. Rxa6 {[%clk 0:00:11.1]} 33... Rxd4 {[%clk 0:00:20.7]} 34. Rxe6
{[%clk 0:00:11.7]} 34... Kf7 {[%clk 0:00:21.3]} 35. Re2 {[%clk 0:00:11]} 35...
h5 {[%clk 0:00:20.7]} 36. Kg2 {[%clk 0:00:11.4]} 36... g5 {[%clk 0:00:20.9]} 37.
h3 {[%clk 0:00:09.7]} 37... Kg6 {[%clk 0:00:21.1]} 38. Ra2 {[%clk 0:00:09.8]}
38... Rb4 {[%clk 0:00:21.1]} 39. Ra6+ {[%clk 0:00:10.1]} 39... Kf5 {[%clk
0:00:21.6]} 40. Ra5+ {[%clk 0:00:10.8]} 40... Kg6 {[%clk 0:00:22]} 41. Kh2
{[%clk 0:00:09.2]} 41... Rb2 {[%clk 0:00:21.5]} 42. Kg1 {[%clk 0:00:09.9]} 42...
Rb1+ {[%clk 0:00:21.8]} 43. Kg2 {[%clk 0:00:10.6]} 43... Rb2 {[%clk 0:00:22.5]}
44. Ra6+ {[%clk 0:00:11.1]} 44... Kf5 {[%clk 0:00:22.6]} 45. Ra8 {[%clk
0:00:11.8]} 45... Rc2 {[%clk 0:00:22]} 46. Rf8+ {[%clk 0:00:11.8]} 46... Kg6
{[%clk 0:00:22.4]} 47. Rf3 {[%clk 0:00:12.4]} 47... Rc5 {[%clk 0:00:22.2]} 48.
Re3 {[%clk 0:00:13]} 48... Rc2 {[%clk 0:00:22.5]} 49. Kf3 {[%clk 0:00:13.5]}
49... g4+ {[%clk 0:00:21.5]} 50. hxg4 {[%clk 0:00:13.2]} 50... hxg4+ {[%clk
0:00:21.9]} 51. Kg2 {[%clk 0:00:14]} 51... Kg5 {[%clk 0:00:21.6]} 52. Re4 {[%clk
0:00:14.2]} 52... Kf5 {[%clk 0:00:21.9]} 53. Rf4+ {[%clk 0:00:14.5]} 53... Kg5
{[%clk 0:00:22.6]} 54. Kf1 {[%clk 0:00:15]} 54... Rc1+ {[%clk 0:00:22.4]} 55.
Ke2 {[%clk 0:00:15.5]} 55... Rc2+ {[%clk 0:00:23]} 56. Ke3 {[%clk 0:00:16.2]}
56... Rc3+ {[%clk 0:00:23.3]} 57. Kd2 {[%clk 0:00:16.2]} 57... Ra3 {[%clk
0:00:23.4]} 58. Rb4 {[%clk 0:00:15.5]} 58... Rf3 {[%clk 0:00:23.2]} 59. Ke2
{[%clk 0:00:14.9]} 59... Ra3 {[%clk 0:00:23.2]} 60. Re4 {[%clk 0:00:13]} 60...
Ra2+ {[%clk 0:00:22.7]} 61. Kf1 {[%clk 0:00:13]} 61... Ra1+ {[%clk 0:00:23]} 62.
Re1 {[%clk 0:00:12.5]} 62... Ra2 {[%clk 0:00:23.2]} 63. Rd1 {[%clk 0:00:12.7]}
63... Rb2 {[%clk 0:00:23.1]} 64. Ke1 {[%clk 0:00:13.2]} 64... Ra2 {[%clk
0:00:22.8]} 65. Rd2 {[%clk 0:00:13.8]} 65... Ra1+ {[%clk 0:00:22.9]} 66. Ke2
{[%clk 0:00:14.2]} 66... Ra3 {[%clk 0:00:23.3]} 67. Rd3 {[%clk 0:00:14.6]} 67...
Ra2+ {[%clk 0:00:23.6]} 68. Ke3 {[%clk 0:00:15.3]} 68... Kf5 {[%clk 0:00:21.4]}
69. Rd5+ {[%clk 0:00:15.4]} 69... Kf6 {[%clk 0:00:21.2]} 70. Rc5 {[%clk
0:00:13.1]} 70... Rb2 {[%clk 0:00:20.9]} 71. Rc8 {[%clk 0:00:11.5]} 71... Kf5
{[%clk 0:00:20.8]} 72. Rf8+ {[%clk 0:00:10.9]} 72... Kg5 {[%clk 0:00:21.2]} 73.
Rg8+ {[%clk 0:00:09.4]} 73... Kf5 {[%clk 0:00:21.2]} 74. Ra8 {[%clk 0:00:09.5]}
74... Rc2 {[%clk 0:00:21.1]} 75. Ra5+ {[%clk 0:00:08.8]} 75... Kf6 {[%clk
0:00:21.1]} 76. Ra4 {[%clk 0:00:09.1]} 76... Kf5 {[%clk 0:00:20.9]} 77. Rf4+
{[%clk 0:00:09]} 77... Kg5 {[%clk 0:00:21.1]} 78. Rd4 {[%clk 0:00:09.7]} 78...
Rb2 {[%clk 0:00:21.2]} 79. Rd3 {[%clk 0:00:10]} 79... Ra2 {[%clk 0:00:21.3]} 80.
Rb3 {[%clk 0:00:10.1]} 80... Rc2 {[%clk 0:00:21.2]} 81. Rb5+ {[%clk 0:00:10.5]}
81... Kf6 {[%clk 0:00:21.1]} 82. f4 {[%clk 0:00:10.4]} 82... gxf3 {[%clk
0:00:21]} 83. Kxf3 {[%clk 0:00:11.3]} 83... Rc4 {[%clk 0:00:20.8]} 84. Rb6+
{[%clk 0:00:10.8]} 84... Kf5 {[%clk 0:00:21.2]} 85. g4+ {[%clk 0:00:09.8]} 85...
Kg5 {[%clk 0:00:21.6]} 86. Rb5+ {[%clk 0:00:09.8]} 86... Kf6 {[%clk 0:00:21.7]}
87. Kg3 {[%clk 0:00:10.3]} 87... Ra4 {[%clk 0:00:20.9]} 88. Kh4 {[%clk
0:00:10.6]} 88... Ra1 {[%clk 0:00:21.1]} 89. Rb6+ {[%clk 0:00:09.6]} 89... Kg7
{[%clk 0:00:20.5]} 90. Kg5 {[%clk 0:00:09.9]} 90... Ra5+ {[%clk 0:00:20]} 91.
Kh4 {[%clk 0:00:10.2]} 91... Ra1 {[%clk 0:00:20.2]} 92. Rb7+ {[%clk 0:00:08.7]}
92... Kg6 {[%clk 0:00:19.9]} 93. Rb6+ {[%clk 0:00:08.4]} 93... Kg7 {[%clk
0:00:20.5]} 1/2-1/2

[Event "Late-Titled-Tuesday-Blitz-March-12-2024"]
[Site "Chess.com"]
[Date "2024.03.12"]
[Round "2"]
[White "NMJeevanK"]
[Black "Rikikits"]
[Result "1-0"]
[WhiteElo "2613"]
[BlackElo "2855"]
[TimeControl "180+1"]
[EndTime "14:19:20 PDT"]
[Termination "NMJeevanK won by checkmate"]

1. e4 {[%clk 0:03:00.9]} 1... c6 {[%clk 0:02:22.8]} 2. d4 {[%clk 0:02:59.7]}
2... d5 {[%clk 0:02:23.1]} 3. exd5 {[%clk 0:03:00.6]} 3... cxd5 {[%clk
0:02:23.2]} 4. Bd3 {[%clk 0:03:01.3]} 4... Nc6 {[%clk 0:02:23.5]} 5. c3 {[%clk
0:03:02]} 5... g6 {[%clk 0:02:23]} 6. Bf4 {[%clk 0:02:52.4]} 6... Bf5 {[%clk
0:02:22.7]} 7. Be2 {[%clk 0:02:52]} 7... h5 {[%clk 0:02:21.2]} 8. Nf3 {[%clk
0:02:50.9]} 8... e6 {[%clk 0:02:21.2]} 9. O-O {[%clk 0:02:46.5]} 9... Bd6 {[%clk
0:02:18.7]} 10. Qd2 {[%clk 0:02:40.7]} 10... Qc7 {[%clk 0:02:05.3]} 11. Bxd6
{[%clk 0:02:40.3]} 11... Qxd6 {[%clk 0:02:06.2]} 12. Na3 {[%clk 0:02:38.5]}
12... Nge7 {[%clk 0:01:58.8]} 13. c4 {[%clk 0:02:36.6]} 13... a6 {[%clk
0:01:36.6]} 14. cxd5 {[%clk 0:02:28.3]} 14... exd5 {[%clk 0:01:32]} 15. Rfe1
{[%clk 0:02:27.1]} 15... O-O {[%clk 0:01:29.2]} 16. Qh6 {[%clk 0:02:22.6]} 16...
Qf6 {[%clk 0:01:24.2]} 17. Rad1 {[%clk 0:02:14]} 17... Rfe8 {[%clk 0:01:10.2]}
18. Qf4 {[%clk 0:01:58.7]} 18... Nc8 {[%clk 0:01:05.9]} 19. Bd3 {[%clk
0:01:49.5]} 19... Nd6 {[%clk 0:01:05.6]} 20. Ne5 {[%clk 0:01:44.6]} 20... Kg7
{[%clk 0:00:58.6]} 21. Bxf5 {[%clk 0:01:35]} 21... Nxf5 {[%clk 0:00:47.6]} 22.
Nxc6 {[%clk 0:01:19.9]} 22... bxc6 {[%clk 0:00:46.3]} 23. Nc2 {[%clk 0:01:18.6]}
23... Nd6 {[%clk 0:00:41]} 24. Qxf6+ {[%clk 0:01:14.7]} 24... Kxf6 {[%clk
0:00:41.9]} 25. Ne3 {[%clk 0:01:15.3]} 25... a5 {[%clk 0:00:31.2]} 26. Rc1
{[%clk 0:01:15.3]} 26... Ra6 {[%clk 0:00:29.9]} 27. Rc5 {[%clk 0:01:12.1]} 27...
Rb8 {[%clk 0:00:27.7]} 28. b3 {[%clk 0:01:10.9]} 28... a4 {[%clk 0:00:27.7]} 29.
bxa4 {[%clk 0:01:05.2]} 29... Ne4 {[%clk 0:00:27.2]} 30. Rc2 {[%clk 0:01:00.8]}
30... Kg7 {[%clk 0:00:18.1]} 31. f3 {[%clk 0:01:00.1]} 31... Nd6 {[%clk
0:00:16.1]} 32. Rec1 {[%clk 0:01:00.3]} 32... Rbb6 {[%clk 0:00:13.1]} 33. a5
{[%clk 0:00:55.4]} 33... Rxa5 {[%clk 0:00:13.1]} 34. Rxc6 {[%clk 0:00:55.6]}
34... Rxc6 {[%clk 0:00:13.8]} 35. Rxc6 {[%clk 0:00:56.2]} 35... Nc4 {[%clk
0:00:11.3]} 36. Nxd5 {[%clk 0:00:44.4]} 36... Nb2 {[%clk 0:00:08.2]} 37. Nc3
{[%clk 0:00:41.1]} 37... Na4 {[%clk 0:00:08.5]} 38. Ne4 {[%clk 0:00:32.9]} 38...
Nb2 {[%clk 0:00:07.7]} 39. Rc7 {[%clk 0:00:29.4]} 39... Rxa2 {[%clk 0:00:06.9]}
40. Nd6 {[%clk 0:00:26]} 40... Kf6 {[%clk 0:00:07.2]} 41. Nxf7 {[%clk
0:00:25.2]} 41... Nd3 {[%clk 0:00:07.5]} 42. h3 {[%clk 0:00:15.8]} 42... Nf4
{[%clk 0:00:07.4]} 43. Ne5 {[%clk 0:00:14.3]} 43... Rxg2+ {[%clk 0:00:06.6]} 44.
Kf1 {[%clk 0:00:14.8]} 44... Ke6 {[%clk 0:00:03.4]} 45. Rf7 {[%clk 0:00:09.2]}
45... Rg3 {[%clk 0:00:02.8]} 46. Rxf4 {[%clk 0:00:09]} 46... Rxh3 {[%clk
0:00:03.6]} 47. Ke2 {[%clk 0:00:09.3]} 47... g5 {[%clk 0:00:03.3]} 48. Rf8
{[%clk 0:00:09.3]} 48... g4 {[%clk 0:00:03.4]} 49. fxg4 {[%clk 0:00:09.6]} 49...
hxg4 {[%clk 0:00:04.3]} 50. Nxg4 {[%clk 0:00:10.3]} 50... Rh4 {[%clk 0:00:04.8]}
51. Kf3 {[%clk 0:00:10.2]} 51... Rh3+ {[%clk 0:00:04.9]} 52. Kf4 {[%clk
0:00:10.6]} 52... Rh1 {[%clk 0:00:05.5]} 53. Rd8 {[%clk 0:00:08.8]} 53... Rf1+
{[%clk 0:00:04.6]} 54. Ke4 {[%clk 0:00:09.3]} 54... Re1+ {[%clk 0:00:04.6]} 55.
Ne3 {[%clk 0:00:09.7]} 55... Ke7 {[%clk 0:00:04.8]} 56. Rd5 {[%clk 0:00:09.7]}
56... Ke6 {[%clk 0:00:05.3]} 57. Re5+ {[%clk 0:00:10.6]} 57... Kd6 {[%clk
0:00:05.8]} 58. Rb5 {[%clk 0:00:09.9]} 58... Rh1 {[%clk 0:00:05.4]} 59. Rb6+
{[%clk 0:00:10]} 59... Kc7 {[%clk 0:00:06]} 60. Rg6 {[%clk 0:00:10.6]} 60... Kd7
{[%clk 0:00:06.3]} 61. Ke5 {[%clk 0:00:09.2]} 61... Rh5+ {[%clk 0:00:05.8]} 62.
Nf5 {[%clk 0:00:09]} 62... Rh1 {[%clk 0:00:06.7]} 63. Rg7+ {[%clk 0:00:08.6]}
63... Kc6 {[%clk 0:00:06.2]} 64. d5+ {[%clk 0:00:08.7]} 64... Kc5 {[%clk
0:00:06.9]} 65. Rc7+ {[%clk 0:00:08.2]} 65... Kb6 {[%clk 0:00:07.6]} 66. Rc2
{[%clk 0:00:08.8]} 66... Re1+ {[%clk 0:00:07.1]} 67. Kd6 {[%clk 0:00:08.4]}
67... Kb5 {[%clk 0:00:07.2]} 68. Nd4+ {[%clk 0:00:07.6]} 68... Kb4 {[%clk
0:00:06.9]} 69. Ne6 {[%clk 0:00:07.9]} 69... Kb5 {[%clk 0:00:06.9]} 70. Rc6
{[%clk 0:00:07.3]} 70... Rd1 {[%clk 0:00:06.5]} 71. Rc8 {[%clk 0:00:05.6]} 71...
Kb6 {[%clk 0:00:06.7]} 72. Rb8+ {[%clk 0:00:05.6]} 72... Ka7 {[%clk 0:00:07.2]}
73. Rb2 {[%clk 0:00:06.5]} 73... Ka6 {[%clk 0:00:07.4]} 74. Nc5+ {[%clk
0:00:06.9]} 74... Ka5 {[%clk 0:00:07.4]} 75. Ra2+ {[%clk 0:00:05.9]} 75... Kb5
{[%clk 0:00:07.2]} 76. Rb2+ {[%clk 0:00:06.1]} 76... Ka5 {[%clk 0:00:07.9]} 77.
Ne6 {[%clk 0:00:06.7]} 77... Ka6 {[%clk 0:00:07.8]} 78. Kc6 {[%clk 0:00:06.5]}
78... Rc1+ {[%clk 0:00:07.1]} 79. Nc5+ {[%clk 0:00:06.6]} 79... Ka7 {[%clk
0:00:07.7]} 80. d6 {[%clk 0:00:07]} 80... Rh1 {[%clk 0:00:05]} 81. Kc7 {[%clk
0:00:04.9]} 81... Rh7+ {[%clk 0:00:04.8]} 82. Nd7 {[%clk 0:00:05.1]} 82... Ka6
{[%clk 0:00:03.3]} 83. Ra2+ {[%clk 0:00:05.4]} 83... Kb5 {[%clk 0:00:03.5]} 84.
Rc2 {[%clk 0:00:06]} 84... Rh8 {[%clk 0:00:03.2]} 85. Ne5 {[%clk 0:00:04.9]}
85... Rh7+ {[%clk 0:00:03]} 86. d7 {[%clk 0:00:05.2]} 86... Ka6 {[%clk
0:00:03.9]} 87. Rf2 {[%clk 0:00:04.6]} 87... Rh8 {[%clk 0:00:02.3]} 88. d8=Q
{[%clk 0:00:04.2]} 88... Rh7+ {[%clk 0:00:02.9]} 89. Qd7 {[%clk 0:00:04.5]}
89... Rh6 {[%clk 0:00:03.1]} 90. Ra2# {[%clk 0:00:03.3]} 1-0